Cogmind - Beta 15 @@@ ROGUE MODE // 2025.09.28 @ 04:53:59 Player: mgobin-777 Result: Self-destructed Performance ------------- Evolutions (2) 1000 Regions Visited (3) 600 Robots Destroyed (45) 225 Value Destroyed (822) 822 Prototype IDs (1) 20 Alien Tech Used (0) 0 Bonus (0) 0 TOTAL SCORE: 2667 Bonus ------- None Cogmind --------- Core Integrity 297/550 Matter 95/300 Energy 54/125 System Corruption 0% Temperature Critical (586) Movement Core (200) Ox3 Location -8/Materials Parts ------- > --- POWER (1) -------- Light Ion Engine > --- PROPULSION (4) --- (None) > --- UTILITY (3) ------ Visual Processing Unit Improved Medium Armor Plating > --- WEAPON (3) ------- (None) > --- INVENTORY (5) ---- Improved Sensor Array Improved Medium Armor Plating Hammer Peak State ------------ > --- POWER ------------ Light Nuclear Core > --- PROPULSION ------- Wheel Wheel Wheel Wheel > --- UTILITY ---------- Small Storage Unit Visual Processing Unit Improved Medium Armor Plating > --- WEAPON ----------- Medium Laser Advanced Beam Cannon Heavy Assault Rifle > --- INVENTORY -------- Light Ion Engine Signal Interpreter Shield Generator Advanced Beam Cannon Heavy Assault Rifle Hammer [Rating: 21] Favorites ----------- Power Light Ion Engine Engine Light Ion Engine Power Core Light Nuclear Core Propulsion Wheel Wheel Wheel Utility Small Storage Unit Device Sensor Array Storage Small Storage Unit Processor Visual Processing Unit Protection Improved Medium Armor Plating Weapon Light Cannon Energy Gun Medium Laser Energy Cannon Advanced Beam Cannon Ballistic Gun Heavy Assault Rifle Ballistic Cannon Light Cannon Impact Weapon Hammer Build | -11 -10 -9 -8 ------- Run | Yrd Mat Mat Mat Slots Evolved 4 | . . 2 2 Power . | . . . . Propulsion 2 | . . 1 1 Utility 1 | . . 1 . Weapon 1 | . . . 1 Parts Attached 31 | 6 8 11 6 Power 5 | 1 2 1 1 Engine 4 | 1 2 . 1 Core 1 | . . 1 . Reactor . | . . . . Propulsion 9 | 2 . 6 1 Treads . | . . . . Leg . | . . . . Wheel 9 | 2 . 6 1 Hover . | . . . . Flight . | . . . . Utility 6 | 1 1 2 2 Device 2 | . . 2 . Storage 1 | 1 . . . Processor 1 | . 1 . . Hackware . | . . . . Protection 2 | . . . 2 Artifact . | . . . . Weapon 11 | 2 5 2 2 Energy Gun 2 | 1 1 . . Energy Cannon 3 | . . 2 1 Ballistic Gun 4 | 1 2 . 1 Ballistic Cannon 1 | . 1 . . Launcher . | . . . . Special Weapon . | . . . . Impact Weapon 1 | . 1 . . Slashing Weapon . | . . . . Piercing Weapon . | . . . . Special Melee Weapon . | . . . . Unidentified Prototypes 1 | . . 1 . Parts Lost 15 | . 1 4 10 Power 3 | . 1 1 1 Propulsion 6 | . . 2 4 Utility 3 | . . 1 2 Weapon 3 | . . . 3 Highest Loss Streak 9 | . 1 3 9 To Critical Strikes 1 | . . . 1 Average Backups 4 | . 3 6 5 Power . | . . . . Propulsion . | . . . . Utility 1 | . 1 1 2 Weapon 2 | . 1 3 2 Tool/Special . | . . . . Unused Backups 4 | 1 . . 3 Power . | . . . . Propulsion 1 | 1 . . . Utility 3 | . . . 3 Weapon . | . . . . Tool/Special . | . . . . Average Slot Usage (%) 93 | . 94 93 91 Engine 10 | . 13 7 . Core 1 | . . 3 7 Wheel 29 | . 28 30 31 Device 2 | . . 7 . Storage 12 | . 14 11 8 Processor 9 | . 9 11 9 Protection 1 | . . . 8 Energy Gun 3 | . 4 . 8 Energy Cannon 3 | . . 7 8 Ballistic Gun 10 | . 10 11 8 Ballistic Cannon 6 | . 10 3 . Impact Weapon 1 | . 2 . . Peak Build Rating 21 | 6 10 17 21 Average Rating 10 | 3 7 13 19 On Entrance 8 | . 6 9 17 Naked Turns . | . . . . Heaviest Build 26 | 12 16 19 26 Greatest Support 40 | 26 26 36 40 Greatest Overweight (x) 6 | . . 1 6 Average Overweight (x) . | . . . . Largest Inventory Capacity 8 | 8 8 8 8 Average Capacity 7 | 6 8 8 7 Most Carried 8 | 4 7 8 7 Average Carried 4 | . 3 6 5 Final Capacity 8 | 8 8 8 5 Final Carried 7 | . 6 7 3 Class Distribution -------------------- 91% | Mutant 8% | Tank Dominant Class ---------------- Mutant | -10/Materials Mutant | -9/Materials Tank | -8/Materials Resources | -11 -10 -9 -8 ----------- Run | Yrd Mat Mat Mat Matter Collected 1033 | 98 506 369 60 Remotely . | . . . . Salvage Created 1477 | . 620 607 250 Parts 81 | . 42 30 9 Haulers Intercepted 3 | . 2 1 . Recyclers Shooed 3 | . 1 2 . Parts Field Recycled . | . . . . Retrieved Matter . | . . . . Parts Self-Destructed . | . . . . Prevented . | . . . . Kills | -11 -10 -9 -8 ------- Run | Yrd Mat Mat Mat Combat Hostiles Destroyed 26 | . 15 7 4 Guns 14 | . 7 4 3 Cannons 12 | . 8 3 1 Classes Destroyed 8 | . 7 1 . Worker 3 | . 1 1 1 Builder 3 | . 1 1 1 Hauler 3 | . 2 1 . Recycler 5 | . 2 3 . Mechanic 1 | . . 1 . Watcher 4 | . 2 2 . Swarmer 12 | . 9 3 . Grunt 14 | . 6 4 4 Best Kill Streak 6 | . 6 5 2 Combat Bots Only 6 | . 6 3 2 Max Kills in Single Turn 2 | . 2 2 1 Gunslinging . | . . . . Exploded . | . . . . Melee . | . . . . Uniques/NPCs Destroyed . | . . . . Combat | -11 -10 -9 -8 -------- Run | Yrd Mat Mat Mat Hostile Shots Fired 178 | . 57 64 57 Missed 43 | . 8 25 10 Hits 135 | . 49 39 47 Projectile 135 | . 49 39 47 Critical Strikes 2 | . . 1 1 Damage Taken 1845 | . 487 469 889 Core 446 | . 121 72 253 Absorbed by Shields 12 | . . 12 . Core Remaining (%) 77 | 100 51 82 . Volleys Fired 137 | . 74 32 31 Largest 3 | . 2 2 3 Hottest 141 | . 80 91 141 Shots Fired 264 | . 128 62 74 Gun 138 | . 63 30 45 Cannon 126 | . 65 32 29 Launcher . | . . . . Special . | . . . . Kinetic 173 | . 107 45 21 Thermal 91 | . 21 17 53 Explosive . | . . . . Electromagnetic . | . . . . Robot Hit Streak 8 | . 8 7 6 Robot Miss Streak 7 | . 7 2 6 Penetration Max . | . . . . Secondary Targets . | . . . . Shots Hit Robots 138 | . 62 42 34 Core Hits 57 | . 26 18 13 Critical Kills . | . . . . Critical Parts Destroyed 1 | . . 1 . Critical Strikes 7 | . 3 2 2 Burn 3 | . 1 . 2 Destroy 1 | . . 1 . Blast 3 | . 2 1 . Melee Attacks 2 | . 2 . . Impact 2 | . 2 . . Slashing . | . . . . Piercing . | . . . . Sneak Attacks . | . . . . Combat Hostiles . | . . . . Follow-up Attacks . | . . . . Damage Inflicted 2461 | . 1009 808 644 Guns 1100 | . 420 366 314 Cannons 1325 | . 562 433 330 Explosions . | . . . . Melee 21 | . 21 . . Ramming 15 | . 6 9 . Kinetic 1501 | . 822 531 148 Thermal 924 | . 160 268 496 Explosive . | . . . . Electromagnetic . | . . . . Impact 21 | . 21 . . Slashing . | . . . . Piercing . | . . . . Highest Corruption 5 | . . 5 . Average Corruption 5 | . . 5 . Corruption Purged . | . . . . Corruption Blocked . | . . . . Effects 11 | . . 11 . Message Errors 2 | . . 2 . Matter Fused 3 | . . 3 . Heat Flow Errors 3 | . . 3 . Energy Discharges 1 | . . 1 . Weapon Failures 2 | . . 2 . Overload Shots . | . . . . Overflow Damage 2 | . . 2 . Projectiles 2 | . . 2 . Explosions . | . . . . Melee . | . . . . Knockbacks 10 | . 8 2 . Impact . | . . . . Kinetic 10 | . 8 2 . Secondary . | . . . . Self-Inflicted Damage 6 | . 2 4 . Shots . | . . . . Rammed 4 | . 2 2 . Targets Rammed 4 | . 2 2 . Kicked . | . . . . Crushed . | . . . . Highest Temperature 814 | . 266 222 814 Average Temperature 236 | . 85 71 458 Received Heat Transfer 571 | . 150 160 261 Effects 53 | . 1 . 52 Shutdowns 7 | . . . 7 Energy Bleed 4 | . . . 4 Interference 4 | . 1 . 3 Matter Decay 6 | . . . 6 Short Circuit 7 | . . . 7 Damage (minor) 3 | . . . 3 Damage (major) 20 | . . . 20 Damage (core) 2 | . . . 2 Siege Activations . | . . . . Martial Activations . | . . . . Shielding Activations . | . . . . Robots Disrupted . | . . . . Combat Hostiles . | . . . . Robots Corrupted . | . . . . Combat Hostiles . | . . . . Parts Fried . | . . . . Impact Corruptions . | . . . . Robots Melted . | . . . . Combat Hostiles . | . . . . Parts Melted 2 | . . . 2 Heat Transferred 2257 | . 555 481 1221 Parts Sabotaged . | . . . . Parts Stolen . | . . . . Parts Stripped . | . . . . Power Chain Reactions . | . . . . Alert | -11 -10 -9 -8 ------- Run | Yrd Mat Mat Mat Maximum Alert Level 1 | . 1 . . Low Security (%) 96 | 100 92 100 100 Level 1 3 | . 7 . . Level 2 . | . . . . Level 3 . | . . . . Level 4 . | . . . . Level 5 . | . . . . High Security . | . . . . Max Security . | . . . . Peak Influence 229 | . 229 154 91 Initial 89 | . . 89 31 Average 60 | . 46 93 47 Influence Increases 838 | . 444 257 137 Destroy 0b10 Robot/C 520 | . 300 140 80 Destroy 0b10 Robot/NC 95 | . 40 45 10 Destroy Leader 84 | . 58 26 . Disable Machine 45 | . 15 . 30 Destroy Structure 4 | . 1 1 2 Partial Spotted 15 | . . . 15 Lose Combat Pursuer 75 | . 30 45 . Influence Decreases 838 | . 233 392 213 Entered New Map 167 | . . 122 45 Time Decay 533 | . 223 230 80 Lost Part 138 | . 10 40 88 Squads Dispatched 2 | . 1 1 . Investigation 1 | . . 1 . Extermination . | . . . . Reinforcement 1 | . 1 . . Assault . | . . . . Garrison . | . . . . Intercept . | . . . . Searches Triggered . | . . . . Construction Impeded . | . . . . Haulers Reinforced . | . . . . Active Scanning Responses . | . . . . Cargo Convoy Interrupts . | . . . . Stealth | -11 -10 -9 -8 --------- Run | Yrd Mat Mat Mat Distress Signals 4 | . 2 1 1 Communications Jammed . | . . . . Distress Signals . | . . . . Times Spotted 54 | . 27 15 12 Peak Tracking Total 6 | . 6 5 6 Tactical Retreats 3 | . 1 2 . Traps | -11 -10 -9 -8 ------- Run | Yrd Mat Mat Mat Traps Triggered 2 | . . 2 . Indirectly . | . . . . Trap Hack Attempts . | . . . . Triggered . | . . . . Disarmed . | . . . . Reprogrammed . | . . . . Reused . | . . . . Traps Extracted . | . . . . Installed . | . . . . Triggered . | . . . . Machines | -11 -10 -9 -8 ---------- Run | Yrd Mat Mat Mat Machines Disabled 3 | . 1 . 2 Max in Single Turn 1 | . 1 . 1 Machines Repaired . | . . . . Machines Dismantled . | . . . . Machines Sabotaged . | . . . . Overloaded Fab Kills . | . . . . Hacking | -11 -10 -9 -8 --------- Run | Yrd Mat Mat Mat Machines Accessed 3 | . 1 2 . Terminals 3 | . 1 2 . Fabricators . | . . . . Repair Stations . | . . . . Recycling Units . | . . . . Scanalyzers . | . . . . Garrison Access . | . . . . Total Hacks 8 | . 2 6 . Successful 4 | . 1 3 . Failed 4 | . 1 3 . Catastrophic 2 | . . 2 . Database Lockouts . | . . . . Manual . | . . . . Terminals 8 | . 2 6 . Fabricators . | . . . . Repair Stations . | . . . . Recycling Units . | . . . . Scanalyzers . | . . . . Garrison Access . | . . . . Terminal Hacks 4 | . 1 3 . Record 2 | . . 2 . Robot Analysis 1 | . . 1 . Alert Level 1 | . 1 . . Fabricator Hacks . | . . . . Repair Station Hacks . | . . . . Recycling Unit Hacks . | . . . . Scanalyzer . | . . . . Garrison Access Hacks . | . . . . Unauthorized Hacks . | . . . . Terminals . | . . . . Fabricators . | . . . . Repair Stations . | . . . . Recycling Units . | . . . . Scanalyzers . | . . . . Garrison Access . | . . . . Data Cores Recovered . | . . . . Used . | . . . . Hacking Detections 2 | . 1 1 . Full Trace Events . | . . . . Feedback Events . | . . . . Feedback Blocked . | . . . . Robot Schematics Acquired . | . . . . Robots Built . | . . . . Authchips . | . . . . Time . | . . . . Total Robot Build Rating . | . . . . Part Schematics Acquired . | . . . . Parts Built . | . . . . Authchips . | . . . . Time . | . . . . Total Part Build Rating . | . . . . Parts Repaired . | . . . . Time . | . . . . Parts Recycled . | . . . . Recycled Matter . | . . . . Retrieved Matter . | . . . . Retrieved Components . | . . . . Parts Scanalyzed . | . . . . Part Schematics Acquired . | . . . . Parts Damaged . | . . . . Bothacking | -11 -10 -9 -8 ------------ Run | Yrd Mat Mat Mat Used RIF Installer . | . . . . Robots Hacked . | . . . . Non-combat . | . . . . Combat . | . . . . Robot Hacks Applied . | . . . . Relay Couplers Released . | . . . . Fabnet Peak Effective % . | . . . . Robots Rewired . | . . . . Allies Hacked . | . . . . Hacks Repelled . | . . . . Allies | -11 -10 -9 -8 -------- Run | Yrd Mat Mat Mat Total Allies . | . . . . Largest Group . | . . . . Highest-Rated Group . | . . . . Highest-Rated Ally . | . . . . Total Orders . | . . . . Ally Attacks . | . . . . Total Damage . | . . . . Kills . | . . . . Allies Corrupted . | . . . . Allies Melted . | . . . . Intel | -11 -10 -9 -8 ------- Run | Yrd Mat Mat Mat Active Infowar (turns) 1216 | . 582 487 147 Optics 1216 | . 582 487 147 Sensors 214 | . . 214 . Robot Analysis Total 1 | . . 1 . Derelict Logs Recovered . | . . . . Drone Launches . | . . . . Drone Recoveries . | . . . . Exploration | -11 -10 -9 -8 ------------- Run | Yrd Mat Mat Mat Turns Passed 1560 | 38 855 487 180 Spaces Moved 1175 | 30 635 428 82 Core 11 | 8 . . 3 Treads . | . . . . Legs . | . . . . Wheels 1164 | 22 635 428 79 Hover . | . . . . Flight . | . . . . Fastest Speed 50 | 50 90 80 80 Average Speed 86 | 79 90 81 86 Slowest Speed 350 | 90 90 95 350 Overloaded Moves . | . . . . Propulsion Burnouts . | . . . . Robots Hopped . | . . . . Potential Cave-ins . | . . . . Cave-ins Triggered . | . . . . Exploration Rate (%) 37 | 3 89 44 14 Regions Visited 3 Branch Regions . Pre-discovered Areas . | . . . . Known Exits Taken . | . . . . Unknown Exits Taken 3 | 1 1 1 . Scrap Searched . | . . . . Spaces Dug . | . . . . Terrain Destroyed . | . . . . Melee . | . . . . Projectile . | . . . . AOE . | . . . . Terrain Rammed . | . . . . Walls Destroyed . | . . . . Machines Disabled . | . . . . Actions | -11 -10 -9 -8 --------- Run | Yrd Mat Mat Mat Total 1462 | 45 785 501 131 Wait 61 | . 48 10 3 Move 1172 | 29 634 427 82 Hop . | . . . . Pick Up 37 | 8 12 13 4 Fast Attach . | . . . . Attach 22 | 6 2 8 6 Detach . | . . . . Swap 11 | . 7 3 1 Drop 16 | 2 4 6 4 Fire 137 | . 74 32 31 Melee 2 | . 2 . . Ram 4 | . 2 2 . Kick . | . . . . Crush . | . . . . Escape Stasis . | . . . . Rewire . | . . . . Trap . | . . . . Miscellaneous . | . . . . Route ------- -11/Scrapyard -10/Materials (discovered 3 exits: *Mat x2 / [*Min]) -9/Materials (discovered 2 exits: [*Mat] / [*Min]) -8/Materials History --------- Turn | Location | Event 14 | -11/Scrapyard | Discovered new exit (range 16) 39 | -11/Scrapyard | Entered Materials 126 | -10/Materials | Discovered new exit (range 7) 311 | -10/Materials | Build established: Mutant 358 | -10/Materials | Discovered new exit (range 7) 869 | -10/Materials | Discovered new exit (range 17) 894 | -10/Materials | Entered another Materials area 894 | -9/Materials | Evolved 2 slots: Propulsion x1, Utility x1 1004 | -9/Materials | Discovered new exit (range 7) 1139 | -9/Materials | Lost 3 parts (2n1u) 1314 | -9/Materials | Discovered new exit (range 18) 1381 | -9/Materials | Entered another Materials area 1381 | -8/Materials | Evolved 2 slots: Propulsion x1, Weapon x1 1561 | -8/Materials | Self-destructed Last Messages --------------- damaged (-81). 01553_ Overheating: Broken Visual Processing Unit damaged (-1). 01553_ Overheating: Imp. Medium Armor Plating damaged (-156). 01553_ Broken Wheel destroyed. 01554_ Med. Laser broken. 01554_ Overheating: Short circuit. 01555_ Power failure, Lgt. Ion Engine shutdown. 01556_ Overheating: Matter decay (-11). 01556_ Sml. Storage Unit destroyed. 01556_ K-01 Serf collects debris. 01556_ Penetrated by Slug. 01556_ Critical hit (Destroy). 01556_ Broken Adv. Beam Cannon destroyed. 01559_ Broken Med. Laser destroyed. 01560_ K-01 Serf collects debris. 01561_ Overheating: Core damaged (-55). 01561_ Penetrated by Slug. 01561_ Broken Wheel destroyed. Map ----- +----------------------------------------------------+ | ?????????????????????????????????????????????????? | | ?????????????????????????????????????????????????? | | ?????????????????????????????????????????????????? | | ?????????????????????????????????????????????????? | | ?????????????????????????????????????????????????? | | ?????????????????????????????????????????????????? | | ?????????????????????????????????????????????????? | | ?????????????????????????????????????????????????? | | ?????????????????????????????????????????????????? | | ?????????????????????????????????????????????????? | | ?????????????????????????????????????????????????? | | ?????????????????????????????????????????????????? | | ??????????????????#?? ???????????????????????????? | | ??????? ????????# ? ??????????????????????????? | | ??????? ?? ????? ? ?????#+#?????###?????????? | | ??????# """ ?????? ? ??# #???? ??????????? | | ??????# " ??????? ? """#?# #??? ???????????? | | ?????## ????????? """#?# ### ????????????? | | ?????? ?????????? """#?# # ?????????????? | | ?????? ??????????? ??# + ??????????????? | | ??????# #???????#+#?#;#??# #???????????????? | | ??????# #??????## ### #### #???????????????? | | ??????# ######?# a #???????????????? | | ??????# # # #???????????????? | | ??????# # # [ T a#???????????????? | | ??????# # + @[ #???????????????? | | ??????# #??????# #???????????????? | | ####### #??????# [] #???????????????? | | !! !!!# #??????# u * u #???????????????? | | !! !!!# #??????# !%= #???????????????? | | ! # ######## =g #???????????????? | | # % ! #???????????????? | | ^ =h%* #???????????????? | | ! #???????????????? | | % " a#???????????????? | | ###+### g + ??????????????? | | # g # ?????????????? | | # " k " ^ #? ????????????? | | " """ # "" "" ^^"" #?? ????????????? | | " """ # "" ""^ "" #???????????????? | | " """ # """ """ """ " " #???????????????? | | # "" "" ""^ "" #???????????????? | | # """ """ """ """ ? #???????????????? | | =# """ """ ""? ""????????????????????? | | ####### """ """ ""? "?????????????????????? | | ??????# " ? ?? ??????????????????????? | | ??????# ?? ??????????????????????????? | | ??????# ?? ??????????????????????????? | | ???????###########?? ??????????????????????????? | | ????????????????????? ???????????????????????????? | +----------------------------------------------------+ Best States ------------- Heat Dissipation 31 Energy Generation 14 Energy Capacity 250 Matter Stores 300 Matter Capacity 300 Sight Range 18 Robot Scan Range 14 Terrain Scan Density 10 Armor Coverage 225 Evasion (%) 50 Item Schematics ----------------- None Robot Schematics ------------------ None Fabricated ------------ Nothing Repaired ---------- Nothing Alien Tech Used ----------------- None Achievements -------------- None Challenges ------------ None Game ------ Seed BladeSubatomicMicroactuators Manual? 0 Play Time 00:19:26 Cumulative 22.6 hours Start 2025.09.28 @ 04:36:09 End 2025.09.28 @ 04:53:59 Sessions 1 Manual Loads 0 Difficulty Rogue Special Mode None Game No. 71 Rogue 65 Adventurer 6 Explorer 0 Win Type - Total 0 Types 0/0/0/0/0/0/0/0/0/0 Lore% 10 Gallery% 19 Achievement% 19 Wizard Run 0 Options --------- Layout 1 ASCII 0 Keyboard 0 Movement Numpad Keybinds 0 Fullscreen 1 Font 24/Smallcaps Map View 50x40 Zoom Use 0% Tactical HUD 1 Map Filters NONE Filters NONE Steam 1 RUN: 77aca90a-7537-493b-8b7a-80f45237a496